Cogmind - Beta 15 @@@ ROGUE MODE // 2025.09.06 @ 13:42:45 Player: the Result: Destroyed by as-63900 with Assembled Maul Performance ------------- Evolutions (0) 0 Regions Visited (2) 400 Robots Destroyed (35) 175 Value Destroyed (630) 630 Prototype IDs (2) 40 Alien Tech Used (0) 0 Bonus (0) 0 TOTAL SCORE: 1245 Bonus ------- None Cogmind --------- Core Integrity 0/250 Matter 165/300 Energy 90/100 System Corruption 10% Temperature Cool (0) Movement Core (50) Location -10/Mines Parts ------- > --- POWER (1) -------- (None) > --- PROPULSION (2) --- (None) > --- UTILITY (2) ------ (None) > --- WEAPON (2) ------- Assault Rifle > --- INVENTORY (5) ---- Ion Engine Light Treads High-capacity Storage Unit Hacking Suite Medium Laser Peak State ------------ > --- POWER ------------ Light Ion Engine > --- PROPULSION ------- Aluminum Leg Aluminum Leg > --- UTILITY ---------- Medium Storage Unit Seismic Detector > --- WEAPON ----------- Medium Laser Medium Laser > --- INVENTORY -------- Ion Engine Light Treads Light Treads Aluminum Leg Aluminum Leg Large Storage Unit Seismic Detector Light Armor Plating Small Laser Mining Laser [Rating: 8] Favorites ----------- Power Light Ion Engine Engine Light Ion Engine Propulsion Aluminum Leg Treads Light Treads Leg Aluminum Leg Utility Medium Storage Unit Device Seismic Detector Storage Medium Storage Unit Protection Light Armor Plating Weapon Medium Laser Energy Gun Medium Laser Ballistic Gun Light Assault Rifle Ballistic Cannon Light Cannon Special Weapon Mining Laser Build | -11 -10 -10 ------- Run | Yrd Mat Min Slots Evolved . | . . . Power . | . . . Propulsion . | . . . Utility . | . . . Weapon . | . . . Parts Attached 29 | 7 21 1 Power 4 | 1 3 . Engine 4 | 1 3 . Core . | . . . Reactor . | . . . Propulsion 9 | 2 7 . Treads 2 | . 2 . Leg 7 | 2 5 . Wheel . | . . . Hover . | . . . Flight . | . . . Utility 7 | 2 5 . Device 1 | 1 . . Storage 3 | 1 2 . Processor . | . . . Hackware . | . . . Protection 3 | . 3 . Artifact . | . . . Weapon 9 | 2 6 1 Energy Gun 2 | . 2 . Energy Cannon . | . . . Ballistic Gun 5 | 2 3 . Ballistic Cannon 1 | . . 1 Launcher . | . . . Special Weapon 1 | . 1 . Impact Weapon . | . . . Slashing Weapon . | . . . Piercing Weapon . | . . . Special Melee Weapon . | . . . Unidentified Prototypes . | . . . Parts Lost 3 | . . 3 Power . | . . . Propulsion 1 | . . 1 Utility 2 | . . 2 Weapon . | . . . Highest Loss Streak 2 | . . 2 To Critical Strikes . | . . . Average Backups 9 | 5 9 11 Power . | . . 1 Propulsion 2 | 3 2 1 Utility 3 | . 3 4 Weapon 2 | 1 2 4 Tool/Special . | . . . Unused Backups 9 | . 3 6 Power . | . . . Propulsion 3 | . 2 1 Utility 4 | . . 4 Weapon 1 | . 1 . Tool/Special 1 | . . 1 Average Slot Usage (%) 99 | . 99 96 Engine 14 | . 14 14 Treads 10 | . 8 28 Leg 17 | . 19 . Device 8 | . 9 1 Storage 14 | . 14 14 Protection 5 | . 4 9 Energy Gun 18 | . 20 . Ballistic Gun 8 | . 7 20 Peak Build Rating 8 | 7 8 8 Average Rating 7 | 5 7 7 On Entrance 5 | . 7 8 Naked Turns . | . . . Heaviest Build 33 | 11 32 33 Greatest Support 40 | 20 40 40 Greatest Overweight (x) 1 | . 1 . Average Overweight (x) . | . . . Largest Inventory Capacity 15 | 8 15 15 Average Capacity 10 | 7 10 14 Most Carried 12 | 8 12 12 Average Carried 9 | 5 9 11 Final Capacity 15 | 8 15 5 Final Carried 12 | 8 12 5 Class Distribution -------------------- 100% | Mutant Dominant Class ---------------- Mutant | -10/Materials Mutant | -10/Mines Resources | -11 -10 -10 ----------- Run | Yrd Mat Min Matter Collected 811 | 241 482 88 Remotely . | . . . Salvage Created 1060 | 183 795 82 Parts 68 | 25 43 . Haulers Intercepted 2 | . 2 . Recyclers Shooed 1 | . 1 . Parts Field Recycled . | . . . Retrieved Matter . | . . . Parts Self-Destructed . | . . . Prevented . | . . . Kills | -11 -10 -10 ------- Run | Yrd Mat Min Combat Hostiles Destroyed 25 | . 16 9 Guns 16 | . 14 2 Cannons 7 | . . 7 Classes Destroyed 10 | 3 6 1 Worker 4 | 2 2 . Builder 1 | . 1 . Tunneler 7 | 6 1 . Hauler 2 | . 2 . Recycler 1 | 1 . . Operator 3 | . 3 . Watcher 1 | . 1 . Swarmer 3 | . 3 . Grunt 13 | . 13 . Assembled 9 | . . 9 Best Kill Streak 6 | 5 5 6 Combat Bots Only 6 | . 5 6 Max Kills in Single Turn 1 | 1 1 1 Gunslinging . | . . . Exploded . | . . . Melee . | . . . Uniques/NPCs Destroyed . | . . . Combat | -11 -10 -10 -------- Run | Yrd Mat Min Hostile Shots Fired 131 | . 88 43 Missed 37 | . 26 11 Hits 94 | . 62 32 Melee 15 | . . 15 Projectile 79 | . 62 17 Critical Strikes 1 | . . 1 Part Disruptions 1 | . . 1 Damage Taken 1392 | . 740 652 Core 268 | . 176 92 Absorbed by Shields . | . . . Core Remaining (%) 100 | 100 . . Volleys Fired 151 | 28 94 29 Largest 2 | 2 2 2 Hottest 100 | 40 100 50 Shots Fired 295 | 56 181 58 Gun 269 | 56 174 39 Cannon 19 | . . 19 Launcher . | . . . Special 7 | . 7 . Kinetic 188 | 56 74 58 Thermal 107 | . 107 . Explosive . | . . . Electromagnetic . | . . . Robot Hit Streak 9 | 6 9 6 Robot Miss Streak 4 | 2 4 3 Penetration Max . | . . . Secondary Targets 3 | . 3 . Max Gunslinging Chain 1 | . 1 . Shots Hit Robots 185 | 40 109 36 Core Hits 83 | 17 48 18 Critical Kills . | . . . Critical Parts Destroyed . | . . . Critical Strikes 4 | . 4 . Burn 4 | . 4 . Melee Attacks . | . . . Impact . | . . . Slashing . | . . . Piercing . | . . . Sneak Attacks . | . . . Combat Hostiles . | . . . Follow-up Attacks . | . . . Damage Inflicted 2105 | 332 1250 523 Guns 1839 | 332 1226 281 Cannons 242 | . . 242 Explosions . | . . . Melee . | . . . Ramming . | . . . Kinetic 1275 | 332 420 523 Thermal 830 | . 830 . Explosive . | . . . Electromagnetic . | . . . Impact . | . . . Slashing . | . . . Piercing . | . . . Highest Corruption 10 | . 1 10 Average Corruption 1 | . 1 1 Corruption Purged . | . . . Corruption Blocked . | . . . Effects 7 | . 4 3 Message Errors 1 | . 1 . Matter Fused 2 | . 1 1 Heat Flow Errors 1 | . 1 . Energy Discharges 1 | . . 1 Data Loss (minor) 1 | . 1 . Alerts 1 | . . 1 Overload Shots . | . . . Overflow Damage 5 | . . 5 Projectiles 5 | . . 5 Explosions . | . . . Melee . | . . . Knockbacks 7 | . . 7 Impact . | . . . Kinetic 7 | . . 7 Secondary . | . . . Self-Inflicted Damage . | . . . Shots . | . . . Rammed . | . . . Targets Rammed . | . . . Kicked . | . . . Crushed . | . . . Highest Temperature 309 | . 309 48 Average Temperature 72 | . 74 25 Received Heat Transfer 466 | . 366 100 Effects 2 | . 2 . Interference 2 | . 2 . Siege Activations . | . . . Martial Activations . | . . . Shielding Activations . | . . . Robots Disrupted . | . . . Combat Hostiles . | . . . Robots Corrupted . | . . . Combat Hostiles . | . . . Parts Fried . | . . . Impact Corruptions . | . . . Robots Melted 2 | . 2 . Combat Hostiles 2 | . 2 . Parts Melted 7 | . 7 . Heat Transferred 2714 | . 2714 . Parts Sabotaged . | . . . Parts Stolen . | . . . Parts Stripped . | . . . Power Chain Reactions . | . . . Alert | -11 -10 -10 ------- Run | Yrd Mat Min Maximum Alert Level . | . . . Low Security (%) 100 | 100 100 100 Level 1 . | . . . Level 2 . | . . . Level 3 . | . . . Level 4 . | . . . Level 5 . | . . . High Security . | . . . Max Security . | . . . Peak Influence 142 | 15 142 19 Initial 19 | . 3 19 Average 43 | 2 55 3 Influence Increases 516 | 45 471 . Destroy 0b10 Robot/C 320 | . 320 . Destroy 0b10 Robot/NC 95 | 45 50 . Destroy Leader 86 | . 86 . Successful Hack 9 | . 9 . Destroy Structure 6 | . 6 . Influence Decreases 516 | 40 425 51 Entered New Map 34 | . 2 32 Time Decay 482 | 40 423 19 Squads Dispatched 5 | . 5 . Investigation 2 | . 2 . Extermination . | . . . Reinforcement 3 | . 3 . Assault . | . . . Garrison . | . . . Intercept . | . . . Searches Triggered . | . . . Construction Impeded . | . . . Haulers Reinforced . | . . . Active Scanning Responses . | . . . Cargo Convoy Interrupts . | . . . Stealth | -11 -10 -10 --------- Run | Yrd Mat Min Distress Signals 3 | . 3 . Communications Jammed . | . . . Distress Signals . | . . . Times Spotted 44 | . 26 18 Peak Tracking Total 7 | . 7 7 Tactical Retreats 3 | . . 3 Traps | -11 -10 -10 ------- Run | Yrd Mat Min Traps Triggered 2 | . 2 . Indirectly . | . . . Trap Hack Attempts . | . . . Triggered . | . . . Disarmed . | . . . Reprogrammed . | . . . Reused . | . . . Traps Extracted . | . . . Installed . | . . . Triggered . | . . . Machines | -11 -10 -10 ---------- Run | Yrd Mat Min Machines Disabled . | . . . Max in Single Turn . | . . . Machines Repaired . | . . . Machines Dismantled . | . . . Machines Sabotaged . | . . . Overloaded Fab Kills . | . . . Hacking | -11 -10 -10 --------- Run | Yrd Mat Min Machines Accessed 4 | . 4 . Terminals 4 | . 4 . Fabricators . | . . . Repair Stations . | . . . Recycling Units . | . . . Scanalyzers . | . . . Garrison Access . | . . . Total Hacks 9 | . 9 . Successful 3 | . 3 . Failed 6 | . 6 . Catastrophic 1 | . 1 . Database Lockouts . | . . . Manual 2 | . 2 . Terminals 9 | . 9 . Fabricators . | . . . Repair Stations . | . . . Recycling Units . | . . . Scanalyzers . | . . . Garrison Access . | . . . Terminal Hacks 3 | . 3 . Prototype ID Bank 1 | . 1 . Locate Traps 2 | . 2 . Fabricator Hacks . | . . . Repair Station Hacks . | . . . Recycling Unit Hacks . | . . . Scanalyzer . | . . . Garrison Access Hacks . | . . . Unauthorized Hacks . | . . . Terminals . | . . . Fabricators . | . . . Repair Stations . | . . . Recycling Units . | . . . Scanalyzers . | . . . Garrison Access . | . . . Data Cores Recovered . | . . . Used . | . . . Hacking Detections 4 | . 4 . Full Trace Events 1 | . 1 . Feedback Events 1 | . 1 . Corruption 1 | . 1 . Feedback Blocked . | . . . Robot Schematics Acquired . | . . . Robots Built . | . . . Authchips . | . . . Time . | . . . Total Robot Build Rating . | . . . Part Schematics Acquired . | . . . Parts Built . | . . . Authchips . | . . . Time . | . . . Total Part Build Rating . | . . . Parts Repaired . | . . . Time . | . . . Parts Recycled . | . . . Recycled Matter . | . . . Retrieved Matter . | . . . Retrieved Components . | . . . Parts Scanalyzed . | . . . Part Schematics Acquired . | . . . Parts Damaged . | . . . Bothacking | -11 -10 -10 ------------ Run | Yrd Mat Min Used RIF Installer . | . . . Robots Hacked . | . . . Non-combat . | . . . Combat . | . . . Robot Hacks Applied . | . . . Relay Couplers Released . | . . . Fabnet Peak Effective % . | . . . Robots Rewired . | . . . Allies Hacked . | . . . Hacks Repelled . | . . . Allies | -11 -10 -10 -------- Run | Yrd Mat Min Total Allies . | . . . Largest Group . | . . . Highest-Rated Group . | . . . Highest-Rated Ally . | . . . Total Orders . | . . . Ally Attacks . | . . . Total Damage . | . . . Kills . | . . . Allies Corrupted . | . . . Allies Melted . | . . . Intel | -11 -10 -10 ------- Run | Yrd Mat Min Active Infowar (turns) 909 | 4 891 14 Seismic 909 | 4 891 14 Robot Analysis Total . | . . . Derelict Logs Recovered . | . . . Drone Launches . | . . . Drone Recoveries . | . . . Exploration | -11 -10 -10 ------------- Run | Yrd Mat Min Turns Passed 1805 | 231 1404 170 Spaces Moved 873 | 71 766 36 Core 2 | 2 . . Treads 273 | . 237 36 Legs 598 | 69 529 . Wheels . | . . . Hover . | . . . Flight . | . . . Fastest Speed 50 | 50 120 160 Average Speed 134 | 118 134 160 Slowest Speed 190 | 120 190 160 Overloaded Moves . | . . . Propulsion Burnouts . | . . . Robots Hopped . | . . . Potential Cave-ins . | . . . Cave-ins Triggered . | . . . Exploration Rate (%) 35 | 4 95 7 Regions Visited 2 Branch Regions 1 Pre-discovered Areas . | . . . Known Exits Taken . | . . . Unknown Exits Taken 2 | 1 1 . Scrap Searched . | . . . Spaces Dug 3 | . 3 . Terrain Destroyed 6 | . 6 . Melee . | . . . Projectile 6 | . 6 . AOE . | . . . Terrain Rammed . | . . . Walls Destroyed . | . . . Machines Disabled . | . . . Actions | -11 -10 -10 --------- Run | Yrd Mat Min Total 1216 | 171 957 88 Wait 112 | 56 37 19 Move 871 | 70 765 36 Hop . | . . . Pick Up 22 | 9 13 . Fast Attach 11 | 7 2 2 Attach 5 | . 4 1 Detach . | . . . Swap 23 | . 22 1 Drop 21 | 1 20 . Fire 151 | 28 94 29 Melee . | . . . Ram . | . . . Kick . | . . . Crush . | . . . Escape Stasis . | . . . Rewire . | . . . Trap . | . . . Miscellaneous . | . . . Route ------- -11/Scrapyard -10/Materials (discovered 4 exits: [*Mat x3] / [*Min]) -10/Mines History --------- Turn | Location | Event 4 | -11/Scrapyard | Discovered new exit (range 16) 232 | -11/Scrapyard | Entered Materials 306 | -10/Materials | Build established: Mutant 453 | -10/Materials | Discovered new exit (range 11) 886 | -10/Materials | Discovered new exit (range 9) 1047 | -10/Materials | Discovered new exit (range 5) 1112 | -10/Materials | Core integrity fell below 50% 1450 | -10/Materials | Discovered new exit (range 12) 1636 | -10/Materials | Entered Mines 1642 | -10/Mines | Assembled infested the area 1647 | -10/Mines | Assisted by a Guerilla fighting off Assembled 1750 | -10/Mines | Core integrity fell below 20% 1804 | -10/Mines | System corruption reached 10% 1804 | -10/Mines | Released all parts (5) 1806 | -10/Mines | Destroyed by as-63900 with Assembled Maul Last Messages --------------- 01751_ as-16717 destroyed. 01757_ Acquired 24 matter. 01762_ System corrupted: Matter fused (-5). 01767_ as-41081 destroyed. 01770_ as-31591 knocked back. 01776_ as-31591 destroyed. 01779_ as-69713 destroyed. 01782_ as-28587 destroyed. 01785_ Acquired 1 matter. 01799_ Acquired 12 matter. 01803_ Seismic Detector destroyed. 01803_ Lgt. Treads destroyed. 01803_ System corrupted by crushing effect (+5). 01803_ System corrupted by crushing effect (+4). 01804_ Released Assault Rifle. 01804_ Released Lrg. Storage Unit. 01804_ Released Lgt. Treads. 01804_ Released Ion Engine. 01804_ Released Lgt. Cannon. 01804_ Acquired Assault Rifle. Map ----- +----------------------------------------------------+ | ?????????????# ????#??????????? | | ????????????# ?? #??????????? | | ???????????? """ ####???????? | | ???????????? """ ????????? | | ???????????? """ ?????????? | | ???????????? ???????????? | | ???????????? ????????????? | | ???????????? #?????????????? | | ??????????## #??????????????? | | ?????????## #???????????????? | | ?????????# #???????????????? | | ?????????# #???????????????? | | ?????????# ##??????????????? | | ?????????## #??????????????? | | ??????????# #??????????????? | | ?????????## ##??????????????? | | ????????## #???????????????? | | ???????## ##???????????????? | | ??????## ##????????????????? | | ?????## #?????????????????? | | ?????# ##?????????????????? | | ?????# ##??????????????????? | | ?????## ##???????????????????? | | ??????## #????????????????????? | | ???#####|#????????????????????? | | ???#%a@[!#????????????????????? | | ???#%a####????????????????????? | | ???#%%#???????????????????????? | | ???#[ #???????????????????????? | | ???#a #???????????????????????? | | ???# #???????????????????????? | | ???# #???????????????????????? | | ???# #???????????????????????? | | ???# "???????????????????????? | | ??? ???????????????????????? | | ??? ???????????????????????? | | ???# #???????????????????????? | | ???###????????????????????????? | | ??????????????????????????????? | | ??????????????????????????????? | | ??????????????????????????????? | | ??????????????????????????????? | | ??????????????????????????????? | | ??????????????????????????????? | | ??????????????????????????????? | | ??????????????????????????????? | | ??????????????????????????????? | | ??????????????????????????????? | | ??????????????????????????????? | | ??????????????????????????????? | +----------------------------------------------------+ Best States ------------- Heat Dissipation 25 Energy Generation 10 Energy Capacity 250 Matter Stores 300 Matter Capacity 300 Sight Range 16 Terrain Scan Density 10 Armor Coverage 150 Evasion (%) 55 Recoil Reduction 2 Item Schematics ----------------- None Robot Schematics ------------------ None Fabricated ------------ Nothing Repaired ---------- Nothing Alien Tech Used ----------------- None Achievements -------------- None Challenges ------------ None Game ------ Seed ReflexCoolingBarrier Manual? 0 Play Time 00:14:45 Cumulative 300.2 hours Start 2025.09.06 @ 13:28:12 End 2025.09.06 @ 13:42:45 Sessions 1 Manual Loads 0 Difficulty Rogue Special Mode None Game No. 210 Rogue 210 Adventurer 0 Explorer 0 Win Type - Total 3 Types 3/0/0/0/0/0/0/0/0/0 Lore% 75 Gallery% 75 Achievement% 61 Wizard Run 0 Options --------- Layout 1 ASCII 0 Keyboard 0 Movement Mouse Keybinds 0 Fullscreen 1 Font 32/SmallcapsGlow Map View 50x35 Zoom Use 0% Tactical HUD 1 Map Filters NONE Filters NONE Steam 1 RUN: 5790b6c6-52fe-4f6e-8afe-718125384ffe